[Event "Slovakia Open Piestany-A 2022"]
[Site "Piestany"]
[Date "2022.07.16"]
[Round "7.19"]
[White "Delgerdalai, Bayarjavkhlan"]
[Black "Farkas, Gabor"]
[Result "0-1"]
[ECO "C77"]
[WhiteElo "2209"]
[BlackElo "2335"]
[Annotator "ChessBase"]
[PlyCount "116"]
[EventDate "2022.07.12"]
[EventType "swiss"]
[EventCountry "SVK"]
[SourceTitle "playchess.com"]
[Source "ChessBase"]
[SourceQuality "1"]
[TimeControl "40/5400+30:1800+30"]

1. e4 {[%emt 0:00:11]} e5 {[%emt 0:00:05]} 2. Nf3 {[%emt 0:00:05]} Nc6 {[%emt 0:00:05]} 3. Bb5 {[%emt 0:00:06]} a6 {[%emt 0:00:05]} 4. Ba4 {[%emt 0:00:04]} Nf6 {[%emt 0:00:06]} 5. Nc3 {[%emt 0:00:12]} Bd6 {[%emt 0:09:01]} 6. d3 {[%emt 0:14:06]} h6 {[%emt 0:09:04]} 7. O-O {[%emt 0:09:43]} b5 {[%emt 0:03:13]} 8. Bb3 {[%emt 0:00:06]} Bb7 {[%emt 0:00:46]} 9. Nd5 {[%emt 0:09:05]} Na5 {[%emt 0:05:46]} 10. d4 {[%emt 0:09:22]} Nxb3 {[%emt 0:02:32]} 11. axb3 {[%emt 0:03:02]} Nxe4 {[%emt 0:09:38]} 12. dxe5 {[%emt 0:00:33]} Be7 {[%emt 0:00:26]} 13. b4 {[%emt 0:15:46]} O-O {[%emt 0:04:38]} 14. Qd4 {[%emt 0:05:45]} f5 {[%emt 0:03:43]} 15. exf6 {[%emt 0:02:12]} Nxf6 {[%emt 0:00:19]} 16. Nxe7+ {[%emt 0:01:04]} Qxe7 {[%emt 0:02:13]} 17. Re1 {[%emt 0:01:10]} Qf7 {[%emt 0:01:13]} 18. Ne5 {[%emt 0:02:08]} Qh5 {[%emt 0:06:49]} 19. Bd2 {[%emt 0:03:15]} Rae8 {[%emt 0:06:53]} 20. f3 {[%emt 0:09:48]} d6 {[%emt 0:13:42]} 21. Ng4 {[%emt 0:02:45]} Nd7 {[%emt 0:05:15]} 22. Bc3 {[%emt 0:01:51]} Qg6 {[%emt 0:00:21]} 23. Qd3 {[%emt 0:02:44]} Qxd3 {[%emt 0:02:16]} 24. cxd3 {[%emt 0:00:11]} h5 {[%emt 0:01:51]} 25. Nf2 {[%emt 0:00:59]} Nb6 {[%emt 0:00:14]} 26. Ne4 {[%emt 0:01:09]} Nd5 {[%emt 0:00:31]} 27. Bd2 {[%emt 0:03:46]} Re5 {[%emt 0:03:05]} 28. Rac1 {[%emt 0:00:39]} Rfe8 {[%emt 0:01:20]} 29. Kf2 {[%emt 0:00:18]} R5e7 {[%emt 0:01:02]} 30. h3 {[%emt 0:01:37]} Kf7 {[%emt 0:01:22]} 31. g4 {[%emt 0:00:35]} hxg4 {[%emt 0:00:50]} 32. hxg4 {[%emt 0:00:05]} Rh8 {[%emt 0:01:20]} 33. Rh1 {[%emt 0:00:41]} Ree8 {[%emt 0:02:23]} 34. Kg2 {[%emt 0:01:27]} Rxh1 {[%emt 0:00:29]} 35. Rxh1 {[%emt 0:00:11]} Nb6 {[%emt 0:01:25]} 36. Rc1 {[%emt 0:00:53]} Re7 {[%emt 0:01:06]} 37. Rc2 {[%emt 0:00:39]} Bd5 {[%emt 0:02:12]} 38. Bg5 {[%emt 0:00:36]} Rd7 {[%emt 0:00:22]} 39. Re2 {[%emt 0:00:27]} Bb3 {[%emt 0:00:50]} 40. Nd2 {[%emt 0:00:42]} Bc2 {[%emt 0:00:33]} 41. Nc4 {[%emt 0:09:18]} bxc4 {[%emt 0:04:49]} 42. Rxc2 {[%emt 0:00:13]} cxd3 {[%emt 0:00:06]} 43. Rc3 {[%emt 0:02:35]} Nd5 {[%emt 0:01:21]} 44. Rc4 {[%emt 0:05:54]} Kg6 {[%emt 0:00:49]} 45. Bd2 {[%emt 0:09:02]} Re7 {[%emt 0:00:39]} 46. Re4 {[%emt 0:00:25]} Rxe4 {[%emt 0:01:59]} 47. fxe4 {[%emt 0:00:17]} Nb6 {[%emt 0:00:13]} 48. b3 {[%emt 0:00:32]} Nd7 {[%emt 0:00:14]} 49. Kf3 {[%emt 0:02:38]} Ne5+ {[%emt 0:00:14]} 50. Kf4 {[%emt 0:00:12]} Kf6 {[%emt 0:02:57]} 51. g5+ {[%emt 0:01:53]} Kg6 {[%emt 0:00:23]} 52. Bc3 {[%emt 0:01:27]} Kh5 {[%emt 0:01:10]} 53. Be1 {[%emt 0:00:42]} g6 {[%emt 0:02:31]} 54. Bd2 {[%emt 0:00:26]} Kh4 {[%emt 0:00:25]} 55. Bc3 {[%emt 0:00:13]} Kh3 {[%emt 0:00:24]} 56. Be1 {[%emt 0:01:45]} c6 {[%emt 0:01:06]} 57. Bc3 {[%emt 0:00:24]} Kg2 {[%emt 0:00:25]} 58. Ke3 {[%emt 0:00:31]} Kg3 {[%emt 0:01:30]} 0-1

[Event "Slovakia Open Piestany-A 2022"]
[Site "Piestany"]
[Date "2022.07.16"]
[Round "7.20"]
[White "Drtina, Milan"]
[Black "Dixit, Nikhil"]
[Result "0-1"]
[ECO "C07"]
[WhiteElo "2167"]
[BlackElo "2325"]
[Annotator "ChessBase"]
[PlyCount "116"]
[EventDate "2022.07.12"]
[EventType "swiss"]
[EventCountry "SVK"]
[SourceTitle "playchess.com"]
[Source "ChessBase"]
[SourceQuality "1"]
[TimeControl "40/5400+30:1800+30"]

1. e4 {[%emt 0:00:19]} e6 {[%emt 0:00:10]} 2. d4 {[%emt 0:01:03]} d5 {[%emt 0:00:06]} 3. Nd2 {[%emt 0:00:11]} c5 {[%emt 0:00:05]} 4. Ngf3 {[%emt 0:00:19]} Nc6 {[%emt 0:00:56]} 5. Bb5 {[%emt 0:00:54]} a6 {[%emt 0:03:16]} 6. Bxc6+ {[%emt 0:00:47]} bxc6 {[%emt 0:00:04]} 7. O-O {[%emt 0:02:44]} cxd4 {[%emt 0:05:08]} 8. Nxd4 {[%emt 0:00:26]} c5 {[%emt 0:01:58]} 9. Nc6 {[%emt 0:03:31]} Qd6 {[%emt 0:08:40]} 10. exd5 {[%emt 0:00:22]} Qxd5 {[%emt 0:00:31]} 11. Qf3 {[%emt 0:00:48]} Qxf3 {[%emt 0:03:37]} 12. Nxf3 {[%emt 0:00:13]} Bb7 {[%emt 0:00:23]} 13. Nce5 {[%emt 0:03:03]} Be7 {[%emt 0:10:14]} 14. b3 {[%emt 0:07:10]} Nf6 {[%emt 0:01:48]} 15. Bb2 {[%emt 0:01:51]} O-O {[%emt 0:00:37]} 16. Rfd1 {[%emt 0:03:17]} Rad8 {[%emt 0:03:55]} 17. a3 {[%emt 0:07:17]} Ne4 {[%emt 0:03:04]} 18. Ne1 {[%emt 0:03:28]} f6 {[%emt 0:07:39]} 19. Nc4 {[%emt 0:00:49]} Nd6 {[%emt 0:03:24]} 20. Na5 {[%emt 0:01:52]} Ba8 {[%emt 0:02:46]} 21. Nd3 {[%emt 0:00:57]} Nf5 {[%emt 0:02:00]} 22. Re1 {[%emt 0:11:24]} Kf7 {[%emt 0:02:26]} 23. f3 {[%emt 0:00:23]} Nd4 {[%emt 0:01:22]} 24. Rac1 {[%emt 0:01:59]} g5 {[%emt 0:03:47]} 25. Nf2 {[%emt 0:03:52]} h5 {[%emt 0:01:53]} 26. c3 {[%emt 0:00:39]} Nxb3 {[%emt 0:08:11]} 27. Nxb3 {[%emt 0:00:19]} Rb8 {[%emt 0:00:04]} 28. Nxc5 {[%emt 0:00:30]} Bxc5 {[%emt 0:00:16]} 29. Rc2 {[%emt 0:00:21]} Rb3 {[%emt 0:00:54]} 30. Kf1 {[%emt 0:05:25]} Bxa3 {[%emt 0:08:08]} 31. Bxa3 {[%emt 0:08:01]} Rxa3 {[%emt 0:00:30]} 32. Nd1 {[%emt 0:00:30]} Bc6 {[%emt 0:00:30]} 33. c4 {[%emt 0:00:30]} Rb8 {[%emt 0:02:10]} 34. Nc3 {[%emt 0:00:30]} a5 {[%emt 0:00:30]} 35. Nb1 {[%emt 0:01:57]} Rab3 {[%emt 0:01:49]} 36. Nd2 {[%emt 0:00:42]} Rb2 {[%emt 0:01:35]} 37. Rec1 {[%emt 0:00:35]} a4 {[%emt 0:01:14]} 38. Ke2 {[%emt 0:00:16]} g4 {[%emt 0:00:30]} 39. Kd3 {[%emt 0:01:11]} R2b7 {[%emt 0:02:52]} 40. Ra1 {[%emt 0:01:06]} Rd8+ {[%emt 0:01:01]} 41. Ke3 {[%emt 0:30:32]} f5 {[%emt 0:30:30]} 42. f4 {[%emt 0:01:43]} Kf6 {[%emt 0:03:16]} 43. g3 {[%emt 0:04:30]} h4 {[%emt 0:00:40]} 44. c5 {[%emt 0:00:28]} hxg3 {[%emt 0:01:59]} 45. hxg3 {[%emt 0:00:11]} Rh8 {[%emt 0:02:20]} 46. Ra3 {[%emt 0:05:19]} Rh3 {[%emt 0:02:51]} 47. Kf2 {[%emt 0:02:41]} Rh2+ {[%emt 0:00:11]} 48. Kf1 {[%emt 0:01:02]} Rbh7 {[%emt 0:00:00]} 49. Rb2 {[%emt 0:00:00]} Rh1+ {[%emt 0:00:00]} 50. Ke2 {[%emt 0:00:00]} R7h2+ {[%emt 0:00:00]} 51. Kd3 {[%emt 0:00:00]} Rg2 {[%emt 0:00:00]} 52. Kc4 {[%emt 0:00:00]} Rd1 {[%emt 0:00:00]} 53. Rd3 {[%emt 0:00:00]} a3 {[%emt 0:00:00]} 54. Rb6 {[%emt 0:00:00]} Rgxd2 {[%emt 0:00:00]} 55. Rxd2 {[%emt 0:00:00]} Rxd2 {[%emt 0:00:00]} 56. Rxc6 {[%emt 0:00:00]} Rg2 {[%emt 0:00:00]} 57. Ra6 {[%emt 0:00:00]} Rxg3 {[%emt 0:00:00]} 58. Ra7 {[%emt 0:00:00]} Rg1 {[%emt 0:00:00]} 0-1

[Event "Slovakia Open Piestany-A 2022"]
[Site "Piestany"]
[Date "2022.07.16"]
[Round "7.21"]
[White "Pniaczek, Marek"]
[Black "Warchol, Kamil"]
[Result "1-0"]
[ECO "B28"]
[WhiteElo "2312"]
[BlackElo "2121"]
[Annotator "ChessBase"]
[PlyCount "61"]
[EventDate "2022.07.12"]
[EventType "swiss"]
[EventCountry "SVK"]
[SourceTitle "playchess.com"]
[Source "ChessBase"]
[SourceQuality "1"]
[TimeControl "40/5400+30:1800+30"]

1. e4 {[%emt 0:00:03]} c5 {[%emt 0:00:04]} 2. Nf3 {[%emt 0:00:16]} a6 {[%emt 0:00:09]} 3. c3 {[%emt 0:02:27]} d5 {[%emt 0:06:31]} 4. exd5 {[%emt 0:05:43]} Qxd5 {[%emt 0:00:23]} 5. d4 {[%emt 0:00:05]} Nc6 {[%emt 0:04:36]} 6. Be3 {[%emt 0:03:43]} cxd4 {[%emt 0:07:46]} 7. cxd4 {[%emt 0:00:41]} e6 {[%emt 0:00:43]} 8. Nc3 {[%emt 0:01:01]} Qd8 {[%emt 0:01:43]} 9. Bc4 {[%emt 0:10:02]} Nf6 {[%emt 0:13:47]} 10. O-O {[%emt 0:00:17]} Be7 {[%emt 0:18:51]} 11. Rc1 {[%emt 0:03:39]} Nb4 {[%emt 0:03:57]} 12. Ne5 {[%emt 0:02:28]} O-O {[%emt 0:02:02]} 13. Qf3 {[%emt 0:01:44]} Rb8 {[%emt 0:07:41]} 14. Qg3 {[%emt 0:03:31]} Nh5 {[%emt 0:02:13]} 15. Qh3 {[%emt 0:01:35]} Nf6 {[%emt 0:01:11]} 16. a3 {[%emt 0:04:52]} Nbd5 {[%emt 0:00:09]} 17. Bd3 {[%emt 0:05:27]} Re8 {[%emt 0:02:18]} 18. Bg5 {[%emt 0:21:31]} g6 {[%emt 0:02:32]} 19. Rfe1 {[%emt 0:04:31]} Rf8 {[%emt 0:03:48]} 20. Bh6 {[%emt 0:01:21]} Re8 {[%emt 0:01:01]} 21. Qg3 {[%emt 0:02:30]} Qd6 {[%emt 0:05:11]} 22. Qf3 {[%emt 0:01:08]} Nxc3 {[%emt 0:02:20]} 23. bxc3 {[%emt 0:01:29]} Ra8 {[%emt 0:03:42]} 24. g4 {[%emt 0:01:31]} g5 {[%emt 0:05:43]} 25. Bxg5 {[%emt 0:00:18]} Kg7 {[%emt 0:00:01]} 26. Qh3 {[%emt 0:01:42]} h5 {[%emt 0:00:11]} 27. gxh5 {[%emt 0:00:38]} Rg8 {[%emt 0:00:51]} 28. h6+ {[%emt 0:03:50]} Kf8 {[%emt 0:00:02]} 29. f4 {[%emt 0:00:17]} Ne8 {[%emt 0:02:03]} 30. h7 {[%emt 0:00:28]} Rh8 {[%emt 0:00:07]} 31. Qh5 {[%emt 0:00:23]} 1-0

[Event "Slovakia Open Piestany-A 2022"]
[Site "Piestany"]
[Date "2022.07.16"]
[Round "7.22"]
[White "Michelle Catherina, P."]
[Black "Matras, Ondrej"]
[Result "1-0"]
[ECO "C07"]
[WhiteElo "2141"]
[BlackElo "2229"]
[Annotator "ChessBase"]
[PlyCount "117"]
[EventDate "2022.07.12"]
[EventType "swiss"]
[EventCountry "SVK"]
[SourceTitle "playchess.com"]
[Source "ChessBase"]
[SourceQuality "1"]
[TimeControl "40/5400+30:1800+30"]

1. e4 {[%emt 0:03:26]} e6 {[%emt 0:00:01]} 2. d4 {[%emt 0:00:29]} d5 {[%emt 0:00:02]} 3. Nd2 {[%emt 0:00:12]} a6 {[%emt 0:00:01]} 4. Ngf3 {[%emt 0:00:30]} c5 {[%emt 0:00:04]} 5. dxc5 {[%emt 0:00:27]} Bxc5 {[%emt 0:00:18]} 6. Bd3 {[%emt 0:00:04]} Nf6 {[%emt 0:01:38]} 7. Qe2 {[%emt 0:00:16]} Nc6 {[%emt 0:00:58]} 8. O-O {[%emt 0:04:57]} Nb4 {[%emt 0:01:53]} 9. e5 {[%emt 0:04:27]} Nd7 {[%emt 0:01:53]} 10. Nb3 {[%emt 0:01:15]} Be7 {[%emt 0:02:14]} 11. Bd2 {[%emt 0:03:47]} Nxd3 {[%emt 0:01:02]} 12. cxd3 {[%emt 0:04:16]} Nb8 {[%emt 0:02:38]} 13. Nfd4 {[%emt 0:03:34]} Bd7 {[%emt 0:00:47]} 14. Rfc1 {[%emt 0:05:03]} Nc6 {[%emt 0:00:33]} 15. Nxc6 {[%emt 0:04:33]} Bxc6 {[%emt 0:00:02]} 16. Ba5 {[%emt 0:04:51]} Qd7 {[%emt 0:00:33]} 17. Nd4 {[%emt 0:04:05]} Rc8 {[%emt 0:00:30]} 18. Qe1 {[%emt 0:02:52]} O-O {[%emt 0:00:57]} 19. Bb4 {[%emt 0:01:33]} Bb5 {[%emt 0:00:55]} 20. Bxe7 {[%emt 0:03:47]} Qxe7 {[%emt 0:00:02]} 21. Qd2 {[%emt 0:03:09]} Qd7 {[%emt 0:03:59]} 22. b3 {[%emt 0:05:55]} Rxc1+ {[%emt 0:01:19]} 23. Rxc1 {[%emt 0:00:06]} Rc8 {[%emt 0:00:06]} 24. Rxc8+ {[%emt 0:04:00]} Qxc8 {[%emt 0:00:02]} 25. a4 {[%emt 0:00:33]} Be8 {[%emt 0:01:34]} 26. Qc2 {[%emt 0:04:26]} Qxc2 {[%emt 0:01:11]} 27. Nxc2 {[%emt 0:00:02]} f6 {[%emt 0:00:13]} 28. f4 {[%emt 0:01:58]} Bg6 {[%emt 0:00:12]} 29. Ne1 {[%emt 0:00:25]} Bh5 {[%emt 0:02:53]} 30. a5 {[%emt 0:05:00]} Bd1 {[%emt 0:05:33]} 31. b4 {[%emt 0:00:10]} g5 {[%emt 0:09:30]} 32. g3 {[%emt 0:11:31]} d4 {[%emt 0:16:36]} 33. fxg5 {[%emt 0:04:47]} fxg5 {[%emt 0:09:50]} 34. Kf2 {[%emt 0:01:47]} g4 {[%emt 0:00:16]} 35. Ng2 {[%emt 0:00:42]} Kf7 {[%emt 0:00:23]} 36. Nf4 {[%emt 0:00:42]} Ke7 {[%emt 0:00:28]} 37. Ke1 {[%emt 0:04:18]} Bf3 {[%emt 0:00:03]} 38. Kd2 {[%emt 0:00:59]} Kd7 {[%emt 0:00:11]} 39. Kc2 {[%emt 0:01:10]} h6 {[%emt 0:03:33]} 40. Kb2 {[%emt 0:00:56]} Kc6 {[%emt 0:00:29]} 41. Ka3 {[%emt 0:30:37]} Kd7 {[%emt 0:30:50]} 42. Ka2 {[%emt 0:00:00]} Kc6 {[%emt 0:00:00]} 43. Kb2 {[%emt 0:00:00]} Kd7 {[%emt 0:00:00]} 44. Kb3 {[%emt 0:00:00]} Bd5+ {[%emt 0:00:00]} 45. Ka3 {[%emt 0:00:00]} Kc6 {[%emt 0:00:00]} 46. Ka4 {[%emt 0:00:00]} Bf3 {[%emt 0:00:00]} 47. b5+ {[%emt 0:00:04]} axb5+ {[%emt 0:00:00]} 48. Kb4 {[%emt 0:00:04]} Bh1 {[%emt 0:00:00]} 49. Nxe6 {[%emt 0:00:41]} Kd5 {[%emt 0:00:00]} 50. Nc5 {[%emt 0:00:39]} Kc6 {[%emt 0:00:00]} 51. Nb3 {[%emt 0:00:25]} Bf3 {[%emt 0:00:00]} 52. e6 {[%emt 0:01:26]} Kd6 {[%emt 0:00:00]} 53. Nxd4 {[%emt 0:01:11]} Bg2 {[%emt 0:00:00]} 54. Kxb5 {[%emt 0:01:24]} Bf1 {[%emt 0:00:00]} 55. Kb6 {[%emt 0:00:25]} Bg2 {[%emt 0:00:00]} 56. Nb3 {[%emt 0:00:32]} Kxe6 {[%emt 0:00:00]} 57. Nc5+ {[%emt 0:00:08]} Kd5 {[%emt 0:00:00]} 58. Nxb7 {[%emt 0:00:16]} Kd4 {[%emt 0:00:00]} 59. a6 {[%emt 0:00:09]} 1-0

[Event "Slovakia Open Piestany-A 2022"]
[Site "Piestany"]
[Date "2022.07.16"]
[Round "7.23"]
[White "Zvarik, Martin"]
[Black "Walter, Ema"]
[Result "0-1"]
[ECO "A45"]
[WhiteElo "2213"]
[BlackElo "2000"]
[Annotator "ChessBase"]
[PlyCount "70"]
[EventDate "2022.07.12"]
[EventType "swiss"]
[EventCountry "SVK"]
[SourceTitle "playchess.com"]
[Source "ChessBase"]
[SourceQuality "1"]
[TimeControl "40/5400+30:1800+30"]

1. d4 {[%emt 0:03:26]} Nf6 {[%emt 0:00:09]} 2. Bg5 {[%emt 0:00:05]} Ne4 {[%emt 0:01:29]} 3. Bh4 {[%emt 0:00:05]} c5 {[%emt 0:00:41]} 4. f3 {[%emt 0:00:05]} g5 {[%emt 0:01:26]} 5. fxe4 {[%emt 0:00:04]} gxh4 {[%emt 0:00:04]} 6. e3 {[%emt 0:00:05]} Bh6 {[%emt 0:01:27]} 7. Qd3 {[%emt 0:00:13]} Qb6 {[%emt 0:07:08]} 8. b3 {[%emt 0:02:08]} Nc6 {[%emt 0:02:46]} 9. c3 {[%emt 0:00:33]} e5 {[%emt 0:21:23]} 10. d5 {[%emt 0:02:22]} Ne7 {[%emt 0:00:53]} 11. Nd2 {[%emt 0:00:15]} Ng6 {[%emt 0:02:02]} 12. Nc4 {[%emt 0:22:19]} Qf6 {[%emt 0:01:20]} 13. a4 {[%emt 0:02:47]} d6 {[%emt 0:04:55]} 14. Ra2 {[%emt 0:03:26]} O-O {[%emt 0:02:25]} 15. Rf2 {[%emt 0:06:23]} Qe7 {[%emt 0:00:30]} 16. Qc2 {[%emt 0:02:58]} Bd7 {[%emt 0:05:18]} 17. Nf3 {[%emt 0:01:31]} f5 {[%emt 0:10:39]} 18. exf5 {[%emt 0:12:00]} Bxf5 {[%emt 0:00:09]} 19. Qd1 {[%emt 0:00:21]} e4 {[%emt 0:14:17]} 20. Nfd2 {[%emt 0:00:09]} Ne5 {[%emt 0:00:33]} 21. Be2 {[%emt 0:01:12]} Bg6 {[%emt 0:09:36]} 22. O-O {[%emt 0:01:11]} Rad8 {[%emt 0:02:14]} 23. Bg4 {[%emt 0:01:49]} Qg5 {[%emt 0:01:46]} 24. Be6+ {[%emt 0:02:35]} Kh8 {[%emt 0:00:03]} 25. Rf4 {[%emt 0:02:39]} Nd3 {[%emt 0:01:35]} 26. Nxe4 {[%emt 0:02:05]} Bxe4 {[%emt 0:01:02]} 27. Rxe4 {[%emt 0:00:34]} Ne5 {[%emt 0:01:29]} 28. Nxe5 {[%emt 0:12:12]} dxe5 {[%emt 0:00:01]} 29. Bg4 {[%emt 0:00:38]} Rxf1+ {[%emt 0:01:54]} 30. Kxf1 {[%emt 0:00:10]} Qf6+ {[%emt 0:01:23]} 31. Ke2 {[%emt 0:00:57]} Rf8 {[%emt 0:00:44]} 32. Qe1 {[%emt 0:01:19]} Qg6 {[%emt 0:00:47]} 33. Bf3 {[%emt 0:04:06]} h3 {[%emt 0:01:01]} 34. gxh3 {[%emt 0:02:27]} Rxf3 {[%emt 0:00:46]} 35. Rxe5 {[%emt 0:01:06]} Rxh3 {[%emt 0:00:46]} 0-1

[Event "Slovakia Open Piestany-A 2022"]
[Site "Piestany"]
[Date "2022.07.16"]
[Round "7.24"]
[White "Holly, Andrej"]
[Black "Brhel, Jan"]
[Result "1-0"]
[ECO "C84"]
[WhiteElo "2213"]
[BlackElo "2018"]
[Annotator "ChessBase"]
[PlyCount "87"]
[EventDate "2022.07.12"]
[EventType "swiss"]
[EventCountry "SVK"]
[SourceTitle "playchess.com"]
[Source "ChessBase"]
[SourceQuality "1"]
[TimeControl "40/5400+30:1800+30"]

1. e4 {[%emt 0:00:30]} e5 {[%emt 0:00:12]} 2. Nf3 {[%emt 0:00:04]} Nc6 {[%emt 0:00:11]} 3. Bb5 {[%emt 0:00:31]} a6 {[%emt 0:00:45]} 4. Ba4 {[%emt 0:00:09]} Nf6 {[%emt 0:00:10]} 5. d4 {[%emt 0:00:23]} exd4 {[%emt 0:01:29]} 6. O-O {[%emt 0:01:28]} Be7 {[%emt 0:01:01]} 7. e5 {[%emt 0:00:48]} Ne4 {[%emt 0:00:55]} 8. Nxd4 {[%emt 0:00:53]} Nc5 {[%emt 0:01:23]} 9. Nf5 {[%emt 0:04:37]} O-O {[%emt 0:03:47]} 10. Qg4 {[%emt 0:02:33]} g6 {[%emt 0:00:16]} 11. Bxc6 {[%emt 0:14:31]} dxc6 {[%emt 0:01:04]} 12. Nxe7+ {[%emt 0:06:31]} Qxe7 {[%emt 0:00:08]} 13. Qg3 {[%emt 0:00:24]} Re8 {[%emt 0:05:03]} 14. Bf4 {[%emt 0:04:42]} Ne6 {[%emt 0:01:03]} 15. Be3 {[%emt 0:01:54]} Ng7 {[%emt 0:01:37]} 16. f4 {[%emt 0:01:12]} Nf5 {[%emt 0:00:25]} 17. Qf2 {[%emt 0:00:30]} Nxe3 {[%emt 0:04:17]} 18. Qxe3 {[%emt 0:00:02]} Bf5 {[%emt 0:01:08]} 19. Nc3 {[%emt 0:04:41]} Qb4 {[%emt 0:01:19]} 20. g4 {[%emt 0:07:05]} Be6 {[%emt 0:15:14]} 21. Ne4 {[%emt 0:01:26]} Red8 {[%emt 0:00:09]} 22. Nf6+ {[%emt 0:00:37]} Kg7 {[%emt 0:02:03]} 23. b3 {[%emt 0:08:29]} Rd2 {[%emt 0:08:37]} 24. c3 {[%emt 0:04:37]} Qb6 {[%emt 0:00:15]} 25. Qxb6 {[%emt 0:00:04]} cxb6 {[%emt 0:00:05]} 26. Rad1 {[%emt 0:05:52]} Rad8 {[%emt 0:00:45]} 27. Rxd2 {[%emt 0:01:28]} Rxd2 {[%emt 0:01:41]} 28. Rf2 {[%emt 0:02:59]} Rd1+ {[%emt 0:02:28]} 29. Rf1 {[%emt 0:02:32]} Rd2 {[%emt 0:00:08]} 30. c4 {[%emt 0:00:29]} b5 {[%emt 0:02:37]} 31. f5 {[%emt 0:01:28]} Bd7 {[%emt 0:02:48]} 32. cxb5 {[%emt 0:10:12]} cxb5 {[%emt 0:00:50]} 33. Nxd7 {[%emt 0:01:19]} Rxd7 {[%emt 0:00:36]} 34. f6+ {[%emt 0:01:00]} Kf8 {[%emt 0:12:18]} 35. Rc1 {[%emt 0:00:06]} Ke8 {[%emt 0:00:04]} 36. Rc8+ {[%emt 0:01:28]} Rd8 {[%emt 0:00:37]} 37. Rxd8+ {[%emt 0:01:12]} Kxd8 {[%emt 0:00:06]} 38. Kf2 {[%emt 0:00:08]} g5 {[%emt 0:15:15]} 39. Ke3 {[%emt 0:00:55]} b6 {[%emt 0:05:22]} 40. Ke4 {[%emt 0:00:57]} h6 {[%emt 0:00:13]} 41. Kd5 {[%emt 0:30:04]} Kd7 {[%emt 0:30:27]} 42. b4 {[%emt 0:00:33]} a5 {[%emt 0:07:01]} 43. a3 {[%emt 0:00:14]} a4 {[%emt 0:00:08]} 44. e6+ {[%emt 0:00:06]} 1-0

[Event "Slovakia Open Piestany-A 2022"]
[Site "Piestany"]
[Date "2022.07.16"]
[Round "7.25"]
[White "Soham Datar"]
[Black "Chlpik, Martin"]
[Result "1-0"]
[ECO "B84"]
[WhiteElo "2111"]
[BlackElo "2236"]
[Annotator "ChessBase"]
[PlyCount "99"]
[EventDate "2022.07.12"]
[EventType "swiss"]
[EventCountry "SVK"]
[SourceTitle "playchess.com"]
[Source "ChessBase"]
[SourceQuality "1"]
[TimeControl "40/5400+30:1800+30"]

1. e4 {[%emt 0:01:02]} c5 {[%emt 0:06:23]} 2. Nc3 {[%emt 0:00:24]} d6 {[%emt 0:00:06]} 3. Nge2 {[%emt 0:01:38]} Nf6 {[%emt 0:00:13]} 4. d4 {[%emt 0:00:31]} cxd4 {[%emt 0:00:04]} 5. Nxd4 {[%emt 0:00:03]} a6 {[%emt 0:00:05]} 6. f4 {[%emt 0:00:27]} e6 {[%emt 0:00:42]} 7. Be3 {[%emt 0:00:26]} Nbd7 {[%emt 0:02:57]} 8. Be2 {[%emt 0:04:36]} Qc7 {[%emt 0:07:30]} 9. g4 {[%emt 0:02:15]} b5 {[%emt 0:09:22]} 10. Bf3 {[%emt 0:01:13]} b4 {[%emt 0:01:57]} 11. g5 {[%emt 0:10:26]} bxc3 {[%emt 0:00:38]} 12. gxf6 {[%emt 0:00:04]} cxb2 {[%emt 0:01:31]} 13. fxg7 {[%emt 0:03:11]} Qc3+ {[%emt 0:02:46]} 14. Kf2 {[%emt 0:00:47]} Bxg7 {[%emt 0:02:26]} 15. Rb1 {[%emt 0:00:18]} Nc5 {[%emt 0:32:24]} 16. e5 {[%emt 0:02:10]} dxe5 {[%emt 0:04:51]} 17. Ne2 {[%emt 0:01:40]} Qc4 {[%emt 0:01:40]} 18. Bxa8 {[%emt 0:02:33]} exf4 {[%emt 0:00:05]} 19. Nxf4 {[%emt 0:02:11]} Be5 {[%emt 0:01:15]} 20. Qe2 {[%emt 0:09:49]} Ne4+ {[%emt 0:05:23]} 21. Bxe4 {[%emt 0:04:59]} Qxe4 {[%emt 0:00:02]} 22. Qd3 {[%emt 0:01:32]} Qc6 {[%emt 0:03:25]} 23. Rbd1 {[%emt 0:02:11]} Ke7 {[%emt 0:02:03]} 24. Qa3+ {[%emt 0:03:20]} Ke8 {[%emt 0:02:22]} 25. Qd3 {[%emt 0:01:33]} Bc7 {[%emt 0:05:51]} 26. Bd4 {[%emt 0:12:35]} Rg8 {[%emt 0:02:31]} 27. Qxh7 {[%emt 0:01:09]} Rf8 {[%emt 0:01:11]} 28. Nh5 {[%emt 0:02:10]} Bb7 {[%emt 0:02:48]} 29. Ng7+ {[%emt 0:07:54]} Ke7 {[%emt 0:00:03]} 30. Bf6+ {[%emt 0:00:13]} Kxf6 {[%emt 0:00:06]} 31. Qh4+ {[%emt 0:00:03]} Kxg7 {[%emt 0:01:43]} 32. Rhg1+ {[%emt 0:00:05]} Qg2+ {[%emt 0:00:06]} 33. Rxg2+ {[%emt 0:00:02]} Bxg2 {[%emt 0:00:06]} 34. Qg5+ {[%emt 0:00:40]} Kh8 {[%emt 0:00:44]} 35. Qxg2 {[%emt 0:00:41]} Rb8 {[%emt 0:00:22]} 36. Qf3 {[%emt 0:02:35]} b1=Q {[%emt 0:00:43]} 37. Rxb1 {[%emt 0:00:15]} Rxb1 {[%emt 0:00:05]} 38. Qc3+ {[%emt 0:00:06]} Kg8 {[%emt 0:00:38]} 39. Qxc7 {[%emt 0:00:06]} Rb5 {[%emt 0:00:23]} 40. Qc8+ {[%emt 0:00:07]} Kg7 {[%emt 0:00:05]} 41. Qxa6 {[%emt 0:30:06]} Rf5+ {[%emt 0:30:09]} 42. Kg2 {[%emt 0:00:17]} e5 {[%emt 0:00:09]} 43. Qe2 {[%emt 0:00:48]} Rg5+ {[%emt 0:01:14]} 44. Kh1 {[%emt 0:00:15]} Kf6 {[%emt 0:00:24]} 45. a4 {[%emt 0:00:13]} Kf5 {[%emt 0:01:17]} 46. Qf3+ {[%emt 0:00:18]} Kg6 {[%emt 0:00:20]} 47. a5 {[%emt 0:00:12]} f5 {[%emt 0:00:13]} 48. a6 {[%emt 0:00:22]} e4 {[%emt 0:00:03]} 49. Qf4 {[%emt 0:00:13]} Rg4 {[%emt 0:00:06]} 50. Qxg4+ {[%emt 0:00:09]} 1-0